[Event "4th Tata Steel India Blitz Women 2022"]
[Site "Kolkota"]
[Date "2022.12.04"]
[Round "15.4"]
[White "Vaishali, Rameshbabu"]
[Black "Savitha Shri B"]
[Result "1-0"]
[ECO "A34"]
[WhiteElo "2454"]
[BlackElo "2411"]
[Annotator "TA"]
[PlyCount "133"]
[EventDate "2022.11.29"]
[EventType "tourn"]
[EventCountry "IND"]
[SourceTitle "playchess.com"]
[Source "ChessBase"]
[SourceQuality "1"]
[TimeControl "180+2"]

{[%evp 14,133,22,-7,-12,-19,-5,-32,-46,-38,-32,-27,0,-27,-43,-30,22,-58,-16,-9,0,0,0,13,1,11,41,0,25,17,95,95,87,0,0,0,99,-70,-72,-108,0,-13,-2,-33,-33,-31,-33,-33,-33,-33,-36,-34,0,0,0,0,0,0,0,-17,58,0,19,14,31,35,89,89,89,89,82,33,33,24,16,0,7,0,0,0,0,0,0,0,0,0,0,0,0,0,0,0,61,61,61,8,38,38,475,480,552,353,408,339,241,155,2462,2412,2450,1847,1676,1525,1278,1129,996,902,29983,29984,29984,29985,29985,29986]} 1. Nf3 {[%emt 0:00:03]} Nf6 {[%emt 0:00:01]} 2. g3 {[%emt 0:00:01]} c5 {[%emt 0:00:01]} 3. Bg2 {[%emt 0:00:02]} Nc6 {[%emt 0:00:01]} 4. c4 {[%emt 0:00:12]} d5 {[%emt 0:00:01]} 5. cxd5 {[%emt 0:00:18]} Nxd5 {[%emt 0:00:02]} 6. Nc3 {[%emt 0:00:03]} Nc7 {[%emt 0:00:00]} 7. a3 {[%emt 0:00:07]} g6 {[%emt 0:00:10]} 8. b4 {[%emt 0:00:10]} cxb4 {[%emt 0:00:16] A34: Symmetrical English: 2 Nc3, lines with ...d5.} 9. axb4 {[%emt 0:00:01] [#] b5 is the strong threat.} Bg7 {[%emt 0:00:02]} 10. Rb1 {[%emt 0:00:24]} Bf5 {[%emt 0:00:37][%cal Og7c3] [#] Prevents b5. Black is slightly better.} 11. Rb3 $146 {[%emt 0:00:17]} ({Predecessor:} 11. Rb2 a6 12. O-O O-O 13. Qe1 Qc8 14. d3 Rd8 15. Bd2 Bh3 16. Rb1 Bxg2 17. Kxg2 Ne6 {½-½ (17) Varillas Jimenes,I (2028)-Buganca,L (1853) Tornelo INT 2021}) 11... Be6 {[%emt 0:00:19]} 12. Rb1 {[%emt 0:00:16]} Bf5 {[%emt 0:00:02][%cal Og7c3] Inhibits b5. And now ...Bxc3! would win.} 13. Rb3 {[%emt 0:01:02]} O-O {[%emt 0:00:02]} 14. O-O {[%emt 0:00:02]} Ne6 {[%emt 0:00:01]} (14... a6 $142) 15. d3 {[%emt 0:00:13]} ({White should try} 15. Nh4 $11) 15... a5 {[%emt 0:00:49]} 16. bxa5 {[%emt 0:00:12]} Nxa5 (16... Nc5 $5 {[%cal Rc5b3]} 17. Ra3 Rxa5 $11) 17. Ra3 {[%emt 0:00:01]} Nc6 {[%emt 0:00:23]} 18. Rxa8 {[%emt 0:00:06]} Qxa8 {[%emt 0:00:01]} 19. Bd2 {[%emt 0:00:01]} Qa3 {[%emt 0:00:04]} 20. Qc1 {[%emt 0:00:05]} Qb3 {[%emt 0:00:19]} 21. Nh4 {[%emt 0:00:03]} (21. Qb1 {is interesting.} Nc5 22. Qa1 Be6 23. Rb1) 21... Ned4 {[%emt 0:00:07]} (21... Bg4 $11 {keeps the balance.}) 22. Nxf5 $16 {[%emt 0:00:02]} Nxf5 {[%emt 0:00:01]} 23. Ne4 {[%emt 0:00:04]} (23. Qb1 $16 Qa3 24. Nb5 (24. Qxb7 Bxc3 25. Bxc3 Qxc3 $16)) 23... Nfd4 $11 {[%emt 0:00:03]} 24. Re1 {[%emt 0:00:00]} Nc2 {[%emt 0:00:03] Inhibits e3.} (24... Ra8 $11 {remains equal.} 25. Nc3 Qb4) 25. Rd1 $2 {[%emt 0:00:02]} (25. Nc5 $16 Qa2 26. Qb1 (26. Nxb7 Nxe1 27. Bxc6 Nc2 $17)) 25... N6d4 $15 {[%emt 0:00:01]} 26. Bf1 {[%emt 0:00:03] [#]} Rc8 {[%emt 0:00:01]} (26... f5 $1 $17 {[%cal Rf5e4]} 27. Nc3 b5) 27. Qb1 {[%emt 0:00:01]} f5 {[%emt 0:00:02]} 28. Qxb3+ {[%emt 0:00:03]} Nxb3 {[%emt 0:00:01] Pair of Knights!} 29. Ng5 {[%emt 0:00:01]} Nxd2 {[%emt 0:00:04]} 30. Rxd2 {[%emt 0:00:01]} Bh6 {[%emt 0:00:01]} 31. h4 {[%emt 0:00:03]} b5 {[%emt 0:00:04] Strongly threatening ...b4.} 32. Bg2 {[%emt 0:00:03]} Bxg5 {[%emt 0:00:06]} (32... e6 $5 {[%cal Rb5b4]} 33. Bb7 Rc3 $15) 33. Bd5+ {[%emt 0:00:01]} Kg7 {[%emt 0:00:02]} 34. hxg5 $11 {[%emt 0:00:01][%mdl 4096] Endgame KRB-KRN} b4 {[%emt 0:00:03]} 35. e3 {[%emt 0:00:03]} Rc5 {[%emt 0:00:03] White must now prevent ...Nxe3.} 36. Bb3 {[%emt 0:00:02]} Na1 {[%emt 0:00:01]} (36... Ne1 $11 37. Kf1 Nf3) 37. Rb2 {[%emt 0:00:03]} (37. Bc4 $14 b3 38. Rb2) 37... Rc3 {[%emt 0:00:01]} 38. Bc4 {[%emt 0:00:03]} Nc2 {[%emt 0:00:12]} 39. Kf1 {[%emt 0:00:02]} Na3 {[%emt 0:00:04]} (39... e5 $14) 40. Rxb4 $16 {[%emt 0:00:01]} Nxc4 {[%emt 0:00:03]} 41. dxc4 {[%emt 0:00:01] KR-KR} ({But not} 41. Rxc4 Rxd3 42. g4 Rd5 $11) 41... Rc2 {[%emt 0:00:03]} 42. Kg2 {[%emt 0:00:01]} (42. Rb7 $16) 42... h6 $1 $14 {[%emt 0:00:02]} 43. gxh6+ Kxh6 {[%emt 0:00:01]} 44. Kf3 {[%emt 0:00:03]} e5 {[%emt 0:00:00]} 45. Kg2 {[%emt 0:00:03]} e4 {[%emt 0:00:02]} 46. Ra4 {[%emt 0:00:02]} Kg5 {[%emt 0:00:02]} 47. Kf1 {[%emt 0:00:02]} Kf6 {[%emt 0:00:01]} 48. Ra6+ {[%emt 0:00:01]} Kg5 {[%emt 0:00:01]} 49. Rc6 {[%emt 0:00:02]} Kh5 {[%emt 0:00:04]} 50. Kg2 {[%emt 0:00:01]} Kg5 {[%emt 0:00:01]} 51. Rc7 {[%emt 0:00:02]} Rc1 {[%emt 0:00:01]} 52. c5 {[%emt 0:00:02]} Kf6 {[%emt 0:00:01]} ({Black should play} 52... Rc2 $11) 53. Rc8 {[%emt 0:00:02] White is more active.} Ke7 {[%emt 0:00:03]} 54. Rc6 {[%emt 0:00:02]} (54. c6 $14) 54... Kf7 {[%emt 0:00:02]} 55. g4 {[%emt 0:00:01][%cal Bg3g4,Bg4g5][%mdl 32]} Rc2 $2 {[%emt 0:00:07][%mdl 8192]} ({Better is} 55... fxg4 $14 56. Rc8 Ke6) 56. g5 $18 {[%emt 0:00:03]} Kg7 {[%emt 0:00:04]} 57. Rc7+ {[%emt 0:00:01]} Kf8 {[%emt 0:00:01]} 58. c6 {[%emt 0:00:03]} Ke8 {[%emt 0:00:00]} 59. Kg3 {[%emt 0:00:03] Hoping for f3.} Kd8 $2 {[%emt 0:00:01] Against f3. This costs Black the game.} (59... Rc1 $16) 60. Rd7+ {[%emt 0:00:01]} Ke8 {[%emt 0:00:03]} 61. Rd6 {[%emt 0:00:02] aiming for Kf4.} Kf7 {[%emt 0:00:03]} 62. Rf6+ {[%emt 0:00:03]} Kg7 {[%emt 0:00:00]} 63. Re6 {[%emt 0:00:03]} Kf7 {[%emt 0:00:02]} 64. Rd6 {[%emt 0:00:00]} Kg7 {[%emt 0:00:00]} 65. Rd7+ {[%emt 0:00:01] White mates.} Kf8 {[%emt 0:00:01]} 66. c7 {[%emt 0:00:01]} Ke8 {[%emt 0:00:03]} 67. Rd8+ {[%emt 0:00:01] Weighted Error Value: White=0.25 (precise) /Black=0.38} 1-0

[Event "4th Tata Steel India Blitz Women 2022"]
[Site "Kolkota"]
[Date "2022.12.04"]
[Round "15.5"]
[White "Dzagnidze, Nana"]
[Black "Koneru, Humpy"]
[Result "1-0"]
[ECO "A21"]
[WhiteElo "2517"]
[BlackElo "2574"]
[Annotator "TA"]
[PlyCount "77"]
[EventDate "2022.11.29"]
[EventType "tourn"]
[EventCountry "IND"]
[SourceTitle "playchess.com"]
[Source "ChessBase"]
[SourceQuality "1"]
[TimeControl "180+2"]

{[%evp 10,77,33,27,34,0,6,-28,-11,-14,-10,-21,0,-4,5,10,15,-40,83,0,255,83,68,31,66,-68,-17,-181,-66,-106,-108,-399,-127,-120,-128,-185,-168,-226,-254,-310,-91,-137,-85,-214,-195,-225,-218,-293,-186,-241,-94,-454,0,-11,0,-18,7,-195,0,0,0,0,259,168,29979,29980,29978,29979,6631,5489]} 1. c4 {[%emt 0:00:01]} e5 {[%emt 0:00:04][%cal Be7e5,Be5e4][%mdl 32]} 2. Nc3 {[%emt 0:00:04]} d6 {[%emt 0:00:10]} 3. Nf3 {[%emt 0:00:14]} f5 {[%emt 0:00:15]} 4. d4 {[%emt 0:00:45][%cal Bd2d4,Bd4d5][%mdl 32]} e4 {[%emt 0:00:04]} 5. Ng5 {[%emt 0:00:03]} Be7 {[%emt 0:00:11]} 6. h4 {[%emt 0:00:26]} Nf6 {[%emt 0:00:43] A21: English Opening: 1...e5 2 Nc3.} 7. g3 {[%emt 0:00:14]} c6 {[%emt 0:00:25]} 8. d5 {[%emt 0:00:11]} h6 {[%emt 0:00:30] Black has an edge.} 9. Nh3 {[%emt 0:00:10]} (9. Ne6 Bxe6 10. dxe6 Qc8 $17) 9... Nbd7 {[%emt 0:00:05]} 10. Nf4 {[%emt 0:00:19] Hoping for Ne6.} Ne5 {[%emt 0:00:02] [#]} 11. b3 $146 {[%emt 0:00:05]} ({Predecessor:} 11. Qb3 Qb6 12. Qxb6 axb6 13. b3 Bd7 14. h5 Kf7 15. Bh3 g5 16. hxg6+ Nxg6 17. Nxg6 Kxg6 {1-0 (46) Salem,A (2530)-Somoff,A (2155) Dubai 2013}) 11... Bd7 {[%emt 0:00:15]} 12. Bb2 {[%emt 0:00:28]} Nfg4 {[%emt 0:00:05]} 13. Bh3 {[%emt 0:00:08]} ({Better is} 13. dxc6 $11 bxc6 14. Bh3) 13... Qb6 {[%emt 0:00:04]} (13... e3 $1 $15 {keeps the upper hand.} 14. fxe3 Bxh4 $1) 14. O-O {[%emt 0:00:13]} (14. Bxg4 $16 Nxg4 15. O-O) 14... O-O-O $2 {[%emt 0:00:10][%mdl 8192]} (14... e3 $1 $11 15. f3 Nf2 16. dxc6 bxc6) 15. Na4 $2 {[%emt 0:00:01]} (15. dxc6 $18 bxc6 16. Nfd5 $1 {[%mdl 512]} cxd5 17. Nxd5) 15... Qc7 $16 {[%emt 0:00:04]} 16. Rc1 {[%emt 0:00:02] Black must now prevent Bxg4.} (16. Bxg4 {simplifies} Nxg4 17. Ng6 Rhe8 18. Qd4) 16... c5 {[%emt 0:00:04]} 17. b4 {[%emt 0:00:03]} ({White should try} 17. Bxe5 $14 Nxe5 18. Ne6 Bxe6 19. dxe6) 17... g5 {[%emt 0:00:06]} (17... e3 $1 $15 18. Bxe5 (18. f3 Nf2 $15) 18... exf2+ 19. Rxf2 Nxf2 20. Kxf2 dxe5) 18. Ng2 $2 {[%emt 0:00:02]} (18. Ne6 $1 $11 Bxe6 19. dxe6) 18... Bf6 {[%emt 0:00:10]} (18... Rhg8 $19 19. bxc5 dxc5 20. hxg5 hxg5 21. Bxe5 Nxe5) 19. Bxg4 {[%emt 0:00:03]} Nxg4 {[%emt 0:00:04]} 20. bxc5 $2 {[%emt 0:00:01][%mdl 8192]} (20. Bxf6 $17 Nxf6 21. bxc5) 20... dxc5 $2 {[%emt 0:00:02]} (20... Bxa4 $19 {and Black stays clearly on top.} 21. Qxa4 Bxb2) 21. Bxf6 $17 {[%emt 0:00:03]} Nxf6 {[%emt 0:00:02]} 22. Nc3 {[%emt 0:00:00]} (22. Rb1 $17 {is a better defense.}) 22... Rhg8 {[%emt 0:00:04]} 23. h5 {[%emt 0:00:05]} (23. e3 {keeps fighting.}) 23... f4 $19 {[%emt 0:00:02]} 24. Qe1 {[%emt 0:00:04]} Bh3 $2 {[%emt 0:00:04]} ({Stronger than} 24... Nxh5 25. Nxe4 Rde8 26. Nc3 $19) (24... Kb8 $19 {is more deadly. ...Rde8 is the strong threat.} 25. Qd2 Nxh5 26. Nxe4 Rde8) 25. Nb5 $17 {[%emt 0:00:01][%csl LRa7,LRc7]} Qb6 {[%emt 0:00:02]} 26. Rb1 {[%emt 0:00:02] [#]} (26. a4 $17 {only move.}) 26... a6 $1 $19 {[%emt 0:00:01]} (26... Nxh5 27. Nc3 Qa6 28. Nxe4 Bxg2 29. Nxc5 $15) 27. Nc3 {[%emt 0:00:03]} Qc7 {[%emt 0:00:02]} 28. Na4 {[%emt 0:00:01]} Rd6 {[%emt 0:00:01]} (28... Nxh5 $2 {is the wrong capture.} 29. Rb6 $19) 29. Qc3 {[%emt 0:00:03]} (29. Rb3 {might work better.}) 29... Nxh5 {[%emt 0:00:03]} (29... e3 $19 {aiming for ...Ne4.} 30. Qa3 Ne4 31. fxe3 fxg3) 30. Qe5 {[%emt 0:00:01][%mdl 8192]} (30. Qa3 $17 {is tougher.} e3 31. Nxc5) 30... f3 $2 {[%emt 0:00:03]} (30... Bd7 $19 31. Nb2 Re8) 31. exf3 $11 {[%emt 0:00:01]} exf3 32. Ne3 {[%emt 0:00:01][%cal Oe3f5]} Bxf1 {[%emt 0:00:04]} (32... Nf6 $5 {[%cal Rg8e8]} 33. Nf5 Bxf5 34. Qxf5+ Qd7 35. Qxd7+ Nxd7 $11) 33. Nxf1 {[%emt 0:00:02] [#]} (33. Nf5 $11 {and White stays safe.} Rgd8 34. Kxf1) 33... Rdd8 $2 {[%emt 0:00:02]} (33... Nf6 $1 $19 {Threatens to win with ...Re8.} 34. Qf5+ Qd7) 34. Qe6+ {[%emt 0:00:02]} Kb8 {[%emt 0:00:02]} 35. Qxa6 {[%emt 0:00:01][%cal Oa4c5]} Rd6 $2 {[%emt 0:00:01][%mdl 8192]} (35... Rg7 $1 $11 {and Black is okay.}) 36. Nxc5 {[%emt 0:00:03][%cal Rb1b7][%mdl 64] The board is on fire.} Rg7 $2 {[%emt 0:00:03]} (36... Rxa6 $18 37. Nxa6+ Kc8 38. Nxc7 Kxc7) 37. Rxb7+ {[%emt 0:00:03][%mdl 64] Overworked Piece} Qxb7 {[%emt 0:00:03]} 38. Qxd6+ {[%emt 0:00:01]} Qc7 {[%emt 0:00:03]} 39. Na6+ {[%emt 0:00:01] Quite a comeback for White.   Weighted Error Value: White=0.74/Black=1.02} ({Weaker is} 39. Qxh6 Qxc5 40. Qxh5 Rb7 $16) 1-0

[Event "4th Tata Steel India Blitz Women 2022"]
[Site "Kolkota"]
[Date "2022.12.04"]
[Round "16.1"]
[White "Muzychuk, Mariya"]
[Black "Ushenina, Anna"]
[Result "1-0"]
[ECO "B17"]
[WhiteElo "2528"]
[BlackElo "2454"]
[Annotator "TA"]
[PlyCount "59"]
[EventDate "2022.11.29"]
[EventType "tourn"]
[EventCountry "IND"]
[SourceTitle "playchess.com"]
[Source "ChessBase"]
[SourceQuality "1"]
[TimeControl "180+2"]

{[%evp 12,59,40,34,39,43,119,116,108,118,116,112,147,138,137,133,134,116,134,120,115,70,116,111,142,150,151,142,160,163,151,150,181,183,187,167,203,196,260,256,239,227,314,309,349,303,29993,29994,29994,29995]} 1. e4 {[%emt 0:00:01]} c6 {[%emt 0:00:01]} 2. d4 {[%emt 0:00:01]} d5 {[%emt 0:00:01]} 3. Nc3 {[%emt 0:00:01]} dxe4 {[%emt 0:00:01]} 4. Nxe4 {[%emt 0:00:01]} Nd7 {[%emt 0:00:01]} 5. Nf3 {[%emt 0:00:04]} Ndf6 {[%emt 0:00:05]} 6. Nxf6+ {[%emt 0:00:30]} Nxf6 {[%emt 0:00:02]} 7. c3 {[%emt 0:00:00]} Qc7 {[%emt 0:00:04] B17: Caro-Kann: Modern Line (4...Nd7).} 8. Ne5 {[%emt 0:00:20] [#]} Nd7 $146 {[%emt 0:00:04]} (8... Bf5 $14) ({Predecessor:} 8... Be6 9. Bf4 Qb6 10. Bc4 Bxc4 11. Nxc4 Qb5 12. Qe2 e6 13. Bd6 Rd8 14. Bxf8 Kxf8 15. a4 {½-½ (40) Sutovsky,E (2647)-Fedoseev,V (2706) Poikovsky 2018}) 9. Bf4 $16 {[%emt 0:00:05][%cal Oe5g6] White has more active pieces. The black rooks are badly placed.} Nxe5 {[%emt 0:00:04] White is better.} 10. Bxe5 {[%emt 0:00:03]} (10. dxe5 $6 g5 11. Be3 Be6 $11) 10... Qb6 {[%emt 0:00:05]} 11. Qc2 {[%emt 0:00:15]} Bg4 {[%emt 0:00:08] [#]} 12. Bd3 $1 {[%emt 0:00:07]} e6 {[%emt 0:00:46]} 13. O-O {[%emt 0:00:04]} Bh5 {[%emt 0:00:18]} 14. Rfe1 {[%emt 0:00:10] Hoping for d5.} Bg6 {[%emt 0:00:05] Inhibits d5.} 15. Bxg6 {[%emt 0:00:05]} hxg6 {[%emt 0:00:03]} 16. Re3 {[%emt 0:00:07]} O-O-O {[%emt 0:00:51]} ({Better is} 16... Qd8 $14) 17. h3 {[%emt 0:00:21]} Rg8 {[%emt 0:00:14]} 18. Rf3 {[%emt 0:00:09]} Rd7 {[%emt 0:00:12]} 19. b4 {[%emt 0:00:01][%cal Of3f7] Rxf7! is the strong threat.} Qd8 {[%emt 0:00:18]} 20. a4 {[%emt 0:00:03]} f6 {[%emt 0:00:02]} 21. Bg3 {[%emt 0:00:08]} g5 {[%emt 0:00:03]} 22. Re1 {[%emt 0:00:07]} Bd6 {[%emt 0:00:05]} 23. Rxe6 {[%emt 0:00:04]} Bxg3 24. Rxg3 {[%emt 0:00:01]} ({Don't do} 24. fxg3 $6 Re8 25. Rfe3 Rde7 $16) 24... Re7 {[%emt 0:00:02]} (24... Re8 {is a better defense.} 25. Qf5 Kb8) 25. Rge3 $18 {[%emt 0:00:07][%cal Bg3e3,Be3e6,Be6e7][%mdl 32]} Rxe6 {[%emt 0:00:02]} 26. Rxe6 {[%emt 0:00:01]} Qd5 {[%emt 0:00:01]} 27. Re7 {[%emt 0:00:07]} Rd8 {[%emt 0:00:11]} 28. Qg6 {[%emt 0:00:07]} ({Resist} 28. Rxg7 Qe6 29. Qh7 Rd7 30. Qg8+ Qxg8 31. Rxg8+ Kc7) 28... Qa2 $2 {[%emt 0:00:07] [#]} (28... Rd7 $18 29. Qxg7 (29. Rxg7 Rxg7 30. Qxg7 Qf5 $18) 29... Rxe7 30. Qxe7 Qb3 31. Qxf6 Qxc3 32. Qf5+ Kc7 33. Qxg5 Qxb4 34. Qe5+ Kd7) 29. Qxg7 {[%emt 0:00:08]} Qb1+ {[%emt 0:00:00]} 30. Kh2 {[%emt 0:00:01] Weighted Error Value: White=0.06 (flawless) /Black=0.49} 1-0

[Event "4th Tata Steel India Blitz Women 2022"]
[Site "Kolkota"]
[Date "2022.12.04"]
[Round "16.2"]
[White "Kulkarni Bhakti"]
[Black "Dzagnidze, Nana"]
[Result "0-1"]
[ECO "D02"]
[WhiteElo "2359"]
[BlackElo "2517"]
[Annotator "TA"]
[PlyCount "72"]
[EventDate "2022.11.29"]
[EventType "tourn"]
[EventCountry "IND"]
[SourceTitle "playchess.com"]
[Source "ChessBase"]
[SourceQuality "1"]
[TimeControl "180+2"]

{[%evp 21,72,0,0,0,0,-2,0,0,0,0,51,0,0,0,0,-47,-7,-7,0,-12,0,0,-10,-27,0,-34,-26,-34,-50,-45,-47,-51,-62,-39,-25,-226,-235,-235,-230,-438,-375,-357,-272,-795,-780,-762,-755,-725,-713,-29989,-29983,-29985,-29984]} 1. d4 {[%emt 0:00:01]} Nf6 {[%emt 0:00:01]} 2. Nf3 {[%emt 0:00:01]} e6 {[%emt 0:00:01]} 3. c3 {[%emt 0:00:08]} b6 {[%emt 0:00:03]} 4. Bf4 {[%emt 0:00:04]} Bb7 {[%emt 0:00:01]} 5. e3 {[%emt 0:00:01]} d5 {[%emt 0:00:14]} 6. Nbd2 {[%emt 0:00:08]} Bd6 {[%emt 0:00:02]} 7. Ne5 {[%emt 0:00:10]} O-O {[%emt 0:00:09]} 8. Bd3 {[%emt 0:00:04]} c5 {[%emt 0:00:23]} 9. O-O {[%emt 0:00:12]} Nc6 {[%emt 0:00:02]} 10. Nxc6 {[%emt 0:00:07]} Bxc6 {[%emt 0:00:02]} 11. Bxd6 {[%emt 0:00:04]} Qxd6 {[%emt 0:00:01]} 12. Nf3 {[%emt 0:00:02] [#] D02: 1 d4 d5 2 Nf3 sidelines, including 2...Nf6 3 g3 and 2...Nf6 3 Bf4.} b5 $146 {[%emt 0:00:42]} ({Predecessor:} 12... c4 13. Bc2 b5 14. Ne5 a5 15. Qf3 Ra7 16. Qh3 Ne4 17. f3 Ng5 18. Qh5 f6 19. Nxc6 Qxc6 {½-½ (72) Pezerovic,E (2423)-Werle,J (2545) Bad Woerishofen 2016}) 13. Ne5 {[%emt 0:00:09]} Rfc8 {[%emt 0:00:02]} 14. f4 {[%emt 0:00:14] The position is equal.} b4 {[%emt 0:00:06]} 15. cxb4 {[%emt 0:00:24]} cxd4 {[%emt 0:00:03]} (15... c4 $11 16. Bc2 Qxb4) 16. b5 {[%emt 0:00:03]} (16. exd4 Qxb4 17. Rf2 Ne4 18. Bxe4 dxe4 $15) ({Better is} 16. Ba6 $1 $14 Rcb8 17. Nxc6 Qxc6 18. b5) 16... Be8 $11 {[%emt 0:00:04]} 17. exd4 {[%emt 0:00:05]} Qb4 {[%emt 0:00:08]} 18. Rf2 {[%emt 0:00:18]} (18. a4 $11) 18... Bxb5 {[%emt 0:00:07]} 19. a3 {[%emt 0:00:14]} Qa5 {[%emt 0:00:01]} (19... Qa4 {simplifies} 20. Qxa4 Bxa4 21. f5 exf5 22. Bxf5 Rc7) 20. b4 {[%emt 0:00:03]} Qb6 {...Ne4 is the strong threat.} 21. Bxb5 {[%emt 0:00:10]} Qxb5 {[%emt 0:00:02]} 22. Rc2 {[%emt 0:00:02]} a5 {[%emt 0:00:05]} 23. bxa5 {[%emt 0:00:12]} Rxc2 {[%emt 0:00:28]} 24. Qxc2 {[%emt 0:00:02]} Qxa5 {[%emt 0:00:01]} 25. a4 {[%emt 0:00:11]} Ne4 {[%emt 0:00:12]} 26. Nc6 {[%emt 0:00:06]} Qc7 {[%emt 0:00:07]} 27. a5 {[%emt 0:00:05]} Qxf4 {[%emt 0:00:03]} 28. Rf1 $2 {[%emt 0:00:12] [#] Loses the game.} (28. Qe2 $11 {and White stays safe.}) 28... Qe3+ $1 $19 {[%emt 0:00:12]} 29. Kh1 {[%emt 0:00:01]} g6 $40 {[%emt 0:00:17][%mdl 128] Black attacks with force.} 30. Qa2 $2 {[%emt 0:00:08]} (30. Ne5) 30... Kg7 {[%emt 0:00:06] And now ...Rc8 would win.} 31. a6 {[%emt 0:00:01]} Qd3 {[%emt 0:00:03][%cal Rd3f1] Against a7} 32. Rxf7+ {[%emt 0:00:05]} (32. Ra1) 32... Kg8 $1 {[%emt 0:00:02] [#] ( -> ...Qd1+)} 33. h3 {[%emt 0:00:16]} Rxa6 {[%emt 0:00:05]} ({Resist} 33... Kxf7 34. Ne5+ Kf6 35. Nxd3 $18) 34. Qb2 {[%emt 0:00:02]} Rxc6 {[%emt 0:00:04]} ({Much less strong is} 34... Kxf7 35. Ne5+ Kg7 36. Nxd3 $18) ({Worse is} 34... Qd1+ 35. Kh2 Kxf7 36. Qb7+ Kf6 37. Qxa6 $17) 35. Re7 {[%emt 0:00:04]} Rc8 {[%emt 0:00:09]} 36. Kh2 {[%emt 0:00:02]} Qe3 {[%emt 0:00:02] Weighted Error Value: White=0.67/Black=0.14 (very precise)} 0-1

[Event "4th Tata Steel India Blitz Women 2022"]
[Site "Kolkota"]
[Date "2022.12.04"]
[Round "16.3"]
[White "Koneru, Humpy"]
[Black "Vaishali, Rameshbabu"]
[Result "0-1"]
[ECO "D37"]
[WhiteElo "2574"]
[BlackElo "2454"]
[Annotator "TA"]
[PlyCount "66"]
[EventDate "2022.11.29"]
[EventType "tourn"]
[EventCountry "IND"]
[SourceTitle "playchess.com"]
[Source "ChessBase"]
[SourceQuality "1"]
[TimeControl "180+2"]

{[%evp 9,66,16,16,24,39,20,31,22,52,26,81,77,102,115,111,105,95,104,107,107,107,96,102,100,114,96,148,71,127,41,46,47,38,33,37,37,53,-18,52,-70,46,0,162,-46,9,15,0,-163,-127,-481,-481,-996,-1023,-1008,-472,-29993,-29994,-29994,-1814]} 1. d4 {[%emt 0:00:01]} Nf6 {[%emt 0:00:03]} 2. c4 {[%emt 0:00:02]} e6 {[%emt 0:00:02]} 3. Nf3 {[%emt 0:00:03]} d5 {[%emt 0:00:02]} 4. Nc3 {[%emt 0:00:02]} h6 {[%emt 0:00:04]} 5. e3 {[%emt 0:00:04]} Be7 {[%emt 0:00:15]} 6. b3 {[%emt 0:00:09] D37: Queen's Gambit Declined: 5 Bf4.} b6 {[%emt 0:00:06]} 7. Bb2 {[%emt 0:00:10]} Bb7 {[%emt 0:00:02] [#]} 8. cxd5 $146 {[%emt 0:00:41] White is slightly better.} ({Predecessor:} 8. Bd3 Nbd7 9. O-O O-O 10. Qe2 Ne4 11. Rac1 f5 12. cxd5 exd5 13. Ba6 Bxa6 14. Qxa6 {1-0 (31) Kuljasevic,D (2562)-Petrov,J (2403) Mali Losinj 2021}) 8... exd5 {[%emt 0:00:17]} 9. Bb5+ {[%emt 0:00:06]} Nbd7 {[%emt 0:00:15]} (9... c6 $11 {keeps the balance.} 10. Bd3 Nbd7) 10. Ne5 $16 {[%emt 0:00:09]} O-O {[%emt 0:00:15]} 11. Bc6 $1 {[%emt 0:00:30]} Bxc6 {[%emt 0:00:50]} 12. Nxc6 {[%emt 0:00:02]} Qe8 {[%emt 0:00:01]} 13. Qf3 {[%emt 0:00:32]} Bd6 {[%emt 0:00:33]} 14. Nxd5 {[%emt 0:00:11]} Nxd5 {[%emt 0:00:05]} 15. Qxd5 {[%emt 0:00:02]} Nf6 {[%emt 0:00:02]} 16. Qf3 {[%emt 0:00:13]} Ne4 {[%emt 0:00:04]} 17. Rc1 {[%emt 0:00:01]} a5 {[%emt 0:00:23]} (17... f5 $142) 18. Rc2 {[%emt 0:00:13]} (18. Qf5 $142 $1) 18... a4 {[%emt 0:00:10]} ({Better is} 18... Bb4+ 19. Kd1 Bd6) 19. O-O {[%emt 0:00:14]} (19. b4 $16) 19... axb3 $14 {[%emt 0:00:02]} 20. axb3 {[%emt 0:00:01]} Qe6 {[%emt 0:00:01]} 21. Rfc1 {[%emt 0:00:06]} Ng5 {[%emt 0:00:05] Prevents b4.} 22. Qe2 {[%emt 0:00:07]} Qxb3 {[%emt 0:00:03]} 23. h4 {[%emt 0:00:05]} (23. e4 $14) 23... Ne6 {[%emt 0:00:03]} (23... Ne4 $11) 24. d5 {[%emt 0:00:02]} (24. Rc3 $14 Qa2 25. g3) 24... Nc5 {[%emt 0:00:02]} (24... Qxd5 $15 25. Rd2 Qb3) 25. e4 {[%emt 0:00:01]} (25. Qg4 $14 {is superior.} g6 26. Qd4) 25... Rae8 $2 {[%emt 0:00:03] [#]} (25... Rfe8 $11 26. Qg4 Bf8) 26. Nd4 $2 {[%emt 0:00:02]} (26. Qg4 $1 $18 {[%csl Gb2][%cal Rg4g7]} f6 27. Nd4) 26... Qa4 {[%emt 0:00:02]} ({Black should play} 26... Qd3 $1 $15 27. f3 Qxe2 28. Rxe2 f5) 27. Rc4 $11 {[%emt 0:00:01]} ({Much weaker is} 27. f3 f5 28. Ra1 (28. Nxf5 $2 Rxf5 29. Qc4 Qxc4 $19) 28... Qd7 $17) 27... Qd7 {[%emt 0:00:01]} (27... Rxe4 {simplifies} 28. Qxe4 Qxc4 29. Rxc4 Nxe4 30. Nf5 Nf6) 28. f3 {[%emt 0:00:02] [#]} (28. Nc6 $11) 28... f5 $1 $19 {[%emt 0:00:02][%cal Rf5e4]} 29. Ba3 $2 {[%emt 0:00:05][%mdl 8192] This costs White the game.} (29. Nxf5 $2 {too greedy.} Rxf5 30. Qd1 Rf7 $19) (29. Ne6 $17 {is tougher.} Nxe6 30. dxe6 Qxe6 31. e5) 29... fxe4 {[%emt 0:00:01]} 30. fxe4 {[%emt 0:00:02]} (30. Qc2 $142 Bf4 31. Ne6 Be3+ 32. Kh1 Bxc1 33. Bxc1) 30... Rxe4 {[%emt 0:00:02]} 31. Qc2 {[%emt 0:00:01]} Rxh4 {[%emt 0:00:02]} (31... Qg4 $142 {( -> ...Qg3)} 32. Nf5 Rxf5 33. Rxe4 Nxe4 34. Bxd6 Nxd6) 32. Nc6 {[%emt 0:00:03]} (32. Nf3 $19 Rh5 33. Re1) 32... Bh2+ {[%emt 0:00:02]} 33. Kh1 {[%emt 0:00:01]} Bf4+ {[%emt 0:00:01] Weighted Error Value: White=0.86/Black=0.46} 0-1